fUSD/lending_fUSD_20250628
["ID","MTS","AMOUNT","RATE_DAILY","PERIOD"]
[368255291,1751075445409,-1432.45,0.00043835,60]
[368255293,1751075445418,-490.0,0.00043835,60]
[368255295,1751075445428,-497.6138843,0.00043835,60]
[368255297,1751075445437,-490.0,0.00043835,60]
[368255299,1751075445447,-494.66143599,0.00043835,60]
[368255301,1751075445456,-575.44572095,0.00043835,60]
[368255303,1751075445465,-490.0,0.00043835,60]
[368255305,1751075445475,-490.0,0.00043835,60]
[368255307,1751075445484,-490.0,0.00043835,60]
[368255309,1751075445494,-490.0,0.00043835,60]
[368255311,1751075445503,-490.0,0.00043835,60]
[368255313,1751075445513,-490.0,0.00043835,60]
[368255315,1751075445522,-623.54,0.00043835,60]
[368255317,1751075445532,-1000.0,0.00043835,120]
[368255319,1751075445542,-508.74242902,0.00043835,60]
[368255321,1751075445552,-1069.68,0.00043835,60]
[368255323,1751075445562,-490.0,0.00043835,60]
[368255325,1751075445571,-490.0,0.00043835,60]
[368255327,1751075445580,-490.0,0.00043835,60]
[368255329,1751075445590,-2424.37,0.00043835,60]
[368255331,1751075445599,-516.55590228,0.00043835,60]
[368255333,1751075445609,-728.1,0.00043835,60]
[368255335,1751075445618,-490.0,0.00043835,60]
[368255337,1751075445628,-507.78,0.00043835,60]
[368255339,1751075445637,-2288.91,0.00043835,60]
[368255341,1751075445647,-505.73198014,0.00043835,60]
[368255343,1751075445657,-682.86,0.00043835,60]
[368255345,1751075445667,-490.0,0.00043835,60]
[368255347,1751075445677,-490.0,0.00043835,60]
[368255349,1751075445686,-950.43117499,0.00043835,120]
[368255350,1751075445695,-564.22,0.00043835,60]
[368255353,1751075445705,-496.25642652,0.00043835,60]
[368255355,1751075445714,-490.0,0.00043835,60]
[368255357,1751075445723,-490.0,0.00043835,60]
[368255359,1751075445733,-490.0,0.00043835,60]
[368255361,1751075445743,-490.0,0.00043835,60]
[368255363,1751075445753,-770.28,0.00043835,60]
[368255365,1751075445762,-346.267055,0.00043835,60]
[368255367,1751075445772,-770.28,0.00043835,60]
[368255368,1751075445781,-508.22,0.00043835,60]
[368255371,1751075445791,-1454.82,0.00043835,60]
[368255373,1751075445801,-490.0,0.00043835,60]
[368255374,1751075445810,-490.0,0.00043835,60]
[368255377,1751075445820,-490.0,0.00043835,60]
[368255379,1751075445829,-553.77,0.00043835,60]
[368255381,1751075445838,-948.82,0.00043835,60]
[368255383,1751075445848,-3724.38,0.00043835,60]
[368255384,1751075445857,-490.0,0.00043835,60]
[368255385,1751075445866,-490.0,0.00043835,60]
[368255386,1751075445875,-527.17598799,0.00043835,60]
[368255387,1751075445884,-777.63,0.00043835,60]
[368255388,1751075445893,-490.0,0.00043835,60]
[368255389,1751075445907,-490.0,0.00043835,60]
[368255390,1751075445916,-826.042613,0.00043835,60]
[368255391,1751075445925,-1022.55,0.00043835,60]
[368255392,1751075445934,-490.0,0.00043835,60]
[368255393,1751075445943,-490.0,0.00043835,60]
[368255394,1751075445953,-1473.3,0.00043835,60]
[368255395,1751075445962,-669.97,0.00043835,60]
[368255397,1751075445971,-490.0,0.00043835,60]
[368255398,1751075445980,-490.0,0.00043835,60]
[368255400,1751075445990,-490.0,0.00043835,60]
[368255402,1751075445999,-871.12,0.00043835,60]
[368255404,1751075446008,-965.64,0.00043835,60]
[368255406,1751075446017,-490.0,0.00043835,60]
[368255408,1751075446026,-853.48,0.00043835,60]
[368255410,1751075446036,-490.0,0.00043835,60]
[368255413,1751075446045,-490.0,0.00043835,60]
[368255415,1751075446057,-490.0,0.00043835,60]
[368255417,1751075446066,-622.1296,0.00043835,60]
[368255419,1751075446077,-518.59,0.00043835,60]
[368255421,1751075446090,-679.9,0.00043835,60]
[368255422,1751075446100,-492.58,0.00043835,60]
[368255425,1751075446109,-500.65705455,0.00043835,60]
[368255427,1751075446119,-522.08,0.00043835,60]
[368255428,1751075446129,-506.91090154,0.00043835,60]
[368255431,1751075446139,-490.0,0.00043835,60]
[368255433,1751075446148,-2579.99,0.00043835,60]
[368255435,1751075446158,-494.19819485,0.00043835,60]
[368255437,1751075446167,-831.83,0.00043835,60]
[368255439,1751075446177,-1205.1,0.00043835,60]
[368255441,1751075446187,-648.74,0.00043835,60]
[368255443,1751075446196,-1116.63,0.00043835,60]
[368255445,1751075446206,-75846.95,0.00043835,60]
[368255447,1751075446215,-719.06,0.00043835,60]
[368255449,1751075446225,-1419.8,0.00043835,60]
[368255451,1751075446234,-502.16,0.00043835,60]
[368255453,1751075446244,-3237.93,0.00043835,60]
[368255455,1751075446253,-490.0,0.00043835,60]
[368255457,1751075446262,-490.0,0.00043835,60]
[368255459,1751075446272,-783.71,0.00043835,60]
[368255461,1751075446281,-485.67342269,0.00043835,60]
[368255463,1751075446291,-490.0,0.00043835,60]
[368255465,1751075446300,-287.34936777,0.00043835,60]
[368255467,1751075446310,-835.21,0.00043835,60]
[368255469,1751075446319,-490.0,0.00043835,60]
[368255471,1751075446329,-577.83,0.00043835,60]
[368255473,1751075446338,-490.0,0.00043835,60]
[368255475,1751075446347,-834.88,0.00043835,60]
[368255477,1751075446356,-492.27,0.00043835,60]
[368255479,1751075446365,-726.44,0.00043835,60]
[368255481,1751075446374,-490.0,0.00043835,60]
[368255483,1751075446383,-490.0,0.00043835,60]
[368255485,1751075446394,-1029.44,0.00043835,60]
[368255487,1751075446403,-490.0,0.00043835,60]
[368255489,1751075446412,-844.28,0.00043835,60]
[368255491,1751075446421,-490.0,0.00043835,60]
[368255493,1751075446430,-490.0,0.00043835,60]
[368255495,1751075446440,-536.53,0.00043835,60]
[368255497,1751075446449,-568.20862219,0.00043835,60]
[368255499,1751075446459,-8104.26,0.00043835,60]
[368255501,1751075446468,-362.05489683,0.00043835,60]
[368255528,1751075446711,-127.94510317,0.00043835,60]
[368255530,1751075446721,-168.468709,0.00043835,60]
[368255532,1751075446731,-165.02329251,0.00043835,60]
[368255534,1751075446742,-457.94344082,0.00043835,60]
[368255536,1751075446751,-50.09067818,0.00043835,60]
[368255538,1751075446762,-692.44932182,0.00043835,60]
[368255540,1751075446772,-210.55067818,0.00043835,60]
[368255542,1751075446783,-564.56,0.00043835,60]
[368255544,1751075446795,-27.63932182,0.00043835,60]
[368255546,1751075446804,-414.38313102,0.00043835,60]
[368255548,1751075446816,-75.61686898,0.00043835,60]
[368255550,1751075446825,-490.0,0.00043835,60]
[368255552,1751075446834,-301.01934702,0.00043835,60]
[368255555,1751075446845,-612.70065298,0.00043835,60]
[368255557,1751075446855,-618.11,0.00043835,60]
[368255559,1751075446864,-490.0,0.00043835,60]
[368255560,1751075446873,-252.47476525,0.00043835,60]
[368255563,1751075446885,-305.20127118,0.00043835,60]
[368255565,1751075446895,-180.31396357,0.00043835,60]
[368255567,1751075446906,-476.25923709,0.00043835,60]
[368255572,1751075446948,-13.74076291,0.00043835,60]
[368255574,1751075446959,-490.0,0.00043835,60]
[368255576,1751075446969,-490.0,0.00043835,60]
[368255578,1751075446978,-559.73,0.00043835,60]
[368255580,1751075446987,-855.92,0.00043835,60]
[368255582,1751075446997,-111.29744372,0.00043835,60]
[368255586,1751075447020,-378.70255628,0.00043835,60]
[368255588,1751075447029,-490.0,0.00043835,60]
[368255590,1751075447038,-1236.86,0.00043835,60]
[368255591,1751075447047,-490.0,0.00043835,60]
[368255593,1751075447057,-715.17,0.00043835,60]
[368255596,1751075447066,-873.52465175,0.00043835,60]
[368255600,1751075447106,-55.61534825,0.00043835,60]
[368255603,1751075447116,-490.0,0.00043835,60]
[368255604,1751075447127,-25.80548175,0.00043835,60]
[368255607,1751075447139,-602.47451825,0.00043835,60]
[368255609,1751075447148,-696.36,0.00043835,60]
[368255611,1751075447158,-490.0,0.00043835,60]
[368255613,1751075447168,-490.0,0.00043835,60]
[368255615,1751075447177,-696.42,0.00043835,60]
[368255617,1751075447186,-490.0,0.00043835,60]
[368255619,1751075447195,-540.4,0.00043835,60]
[368255621,1751075447204,-490.0,0.00043835,60]
[368255623,1751075447213,-490.0,0.00043835,60]
[368255625,1751075447222,-586.1,0.00043835,60]
[368255627,1751075447232,-509.44,0.00043835,60]
[368255629,1751075447242,-734.91,0.00043835,60]
[368255631,1751075447251,-490.0,0.00043835,60]
[368255633,1751075447262,-490.0,0.00043835,60]
[368255635,1751075447272,-490.0,0.00043835,60]
[368255637,1751075447280,-721.17,0.00043835,60]
[368255639,1751075447289,-739.2,0.00043835,60]
[368255641,1751075447298,-170.144007,0.00043835,60]
[368255643,1751075447307,-490.0,0.00043835,60]
[368255645,1751075447317,-490.0,0.00043835,60]
[368255647,1751075447326,-1271.13,0.00043835,60]
[368255649,1751075447335,-3941.91,0.00043835,60]
[368255651,1751075447345,-551.40305992,0.00043835,60]
[368255653,1751075447356,-188.97694008,0.00043835,60]
[368255655,1751075447365,-261.21352528,0.00043835,30]
[368255657,1751075447377,-228.78647472,0.00043835,30]
[368255659,1751075447386,-733.01,0.00043835,60]
[368255661,1751075447395,-5.71913128,0.00043835,60]
[368255662,1751075447407,-343.19518579,0.00043835,60]
[368255742,1751075448314,-490.0,0.00038506,120]
[368255744,1751075448326,-12.77889613,0.00038506,120]
[368255746,1751075448335,-151.0,0.00042925,5]
[368255747,1751075448345,-558.06568293,0.00043835,60]
[368255749,1751075448354,-1047.11102158,0.00043835,60]
[368255751,1751075448367,-406.15,0.00043835,60]
[368255754,1751075448387,-3140.24897842,0.00043835,60]
[368255756,1751075448397,-490.0,0.00043835,60]
[368255758,1751075448407,-490.0,0.00043835,60]
[368255760,1751075448417,-674.93,0.00043835,60]
[368255762,1751075448426,-490.0,0.00043835,60]
[368255763,1751075448436,-2035.79,0.00043835,60]
[368255765,1751075448445,-847.9,0.00043835,60]
[368255767,1751075448454,-609.4,0.00043835,60]
[368255769,1751075448464,-490.0,0.00043835,60]
[368255771,1751075448473,-553.34,0.00043835,60]
[368255773,1751075448483,-490.0,0.00043835,60]
[368255774,1751075448492,-491.78,0.00043835,60]
[368255776,1751075448501,-164.805588,0.00043835,60]
[368255778,1751075448511,-490.0,0.00043835,60]
[368255780,1751075448521,-490.0,0.00043835,60]
[368255782,1751075448530,-985.82,0.00043835,60]
[368255784,1751075448540,-991.61,0.00043835,60]
[368255786,1751075448550,-490.0,0.00043835,60]
[368255787,1751075448560,-490.0,0.00043835,60]
[368255789,1751075448570,-623.2990422,0.00043835,60]
[368255791,1751075448583,-600.752445,0.00043835,60]
[368255793,1751075448595,-34.1085128,0.00043835,60]
[368255795,1751075448606,-1014.21242852,0.00043835,2]
[368255797,1751075448616,-703.0,0.00043835,60]
[368255799,1751075448625,-1000.0,0.00043835,60]
[368255801,1751075448635,-343.23311056,0.00043835,60]
[368255803,1751075448645,-490.0,0.00043835,60]
[368255805,1751075448655,-457.87523048,0.00043835,60]
[368255807,1751075448671,-32.12476952,0.00043835,60]
[368255809,1751075448680,-490.0,0.00043835,60]
[368255811,1751075448690,-490.0,0.00043835,60]
[368255813,1751075448699,-658.75,0.00043835,60]
[368255814,1751075448708,-578.97,0.00043835,60]
[368255816,1751075448717,-490.0,0.00043835,60]
[368255818,1751075448726,-260.202986,0.00043835,60]
[368255820,1751075448736,-490.0,0.00043835,60]
[368255822,1751075448745,-879.95,0.00043835,60]
[368255824,1751075448754,-924.07,0.00043835,60]
[368255826,1751075448764,-490.0,0.00043835,60]
[368255827,1751075448774,-2028.16,0.00043835,60]
[368255829,1751075448785,-567.53,0.00043835,60]
[368255831,1751075448795,-490.0,0.00043835,60]
[368255833,1751075448806,-490.0,0.00043835,60]
[368255835,1751075448815,-5752.55,0.00043835,60]
[368255837,1751075448825,-1945.62,0.00043835,60]
[368255839,1751075448834,-490.0,0.00043835,60]
[368255841,1751075448843,-490.0,0.00043835,60]
[368255843,1751075448853,-530.0346299,0.00043835,60]
[368255844,1751075448862,-795.8,0.00043835,60]
[368255846,1751075448872,-624.94,0.00043835,60]
[368255848,1751075448882,-490.0,0.00043835,60]
[368255850,1751075448891,-490.0,0.00043835,60]
[368255852,1751075448900,-490.0,0.00043835,60]
[368255854,1751075448910,-503.95,0.00043835,60]
[368255856,1751075448920,-505.71,0.00043835,60]
[368255858,1751075448929,-490.0,0.00043835,60]
[368255859,1751075448938,-652.38,0.00043835,60]
[368255861,1751075448948,-490.0,0.00043835,60]
[368255863,1751075448958,-490.0,0.00043835,60]
[368255865,1751075448967,-1481.13,0.00043835,60]
[368255867,1751075448979,-1478.21,0.00043835,60]
[368255869,1751075448988,-503.42476906,0.00043835,60]
[368255871,1751075448997,-490.0,0.00043835,60]
[368255873,1751075449006,-538.97,0.00043835,60]
[368255874,1751075449016,-490.0,0.00043835,60]
[368255876,1751075449025,-679.13,0.00043835,60]
[368255877,1751075449034,-155.217187,0.00043835,60]
[368255878,1751075449045,-490.0,0.00043835,60]
[368255879,1751075449055,-515.84687643,0.00043835,60]
[368255880,1751075449065,-551.64,0.00043835,60]
[368255881,1751075449074,-490.0,0.00043835,60]
[368255882,1751075449085,-1175.27,0.00043835,60]
[368255883,1751075449094,-191.74717654,0.00043835,60]
[368255884,1751075449104,-972.1,0.00043835,60]
[368255885,1751075449114,-569.96,0.00043835,60]
[368255886,1751075449124,-490.0,0.00043835,60]
[368255887,1751075449135,-608.27,0.00043835,60]
[368255888,1751075449145,-421.12055397,0.00043835,60]
[368255889,1751075449157,-490.0,0.00043835,60]
[368255890,1751075449167,-490.0,0.00043835,60]
[368255891,1751075449177,-509.38,0.00043835,60]
[368255893,1751075449187,-490.0,0.00043835,60]
[368255894,1751075449197,-490.0,0.00043835,60]
[368255895,1751075449206,-2654.13,0.00043835,60]
[368255897,1751075449215,-299.47848851,0.00043835,60]
[368255899,1751075449225,-555.7,0.00043835,60]
[368255901,1751075449234,-520.01917363,0.00043835,60]
[368255903,1751075449244,-2157.15,0.00043835,60]
[368255905,1751075449254,-490.0,0.00043835,60]
[368255907,1751075449263,-492.61589201,0.00043835,60]
[368255909,1751075449272,-642.09,0.00043835,60]
[368255911,1751075449282,-490.0,0.00043835,60]
[368255913,1751075449291,-490.0,0.00043835,60]
[368255915,1751075449301,-490.0,0.00043835,60]
[368255917,1751075449311,-1393.05,0.00043835,60]
[368255919,1751075449321,-490.0,0.00043835,60]
[368255921,1751075449331,-1000.0,0.00043835,60]
[368255923,1751075449340,-490.0,0.00043835,60]
[368255925,1751075449349,-943.65,0.00043835,60]
[368255927,1751075449359,-490.0,0.00043835,60]
[368255929,1751075449368,-699.82,0.00043835,60]
[368255931,1751075449378,-197.57426981,0.00043835,60]
[368255933,1751075449388,-1767.17,0.00043835,14]
[368255935,1751075449397,-499.98,0.00043835,60]
[368255937,1751075449407,-490.0,0.00043835,60]
[368255940,1751075449416,-490.0,0.00043835,60]
[368255942,1751075449426,-490.0,0.00043835,60]
[368255944,1751075449436,-490.0,0.00043835,60]
[368255946,1751075449445,-205.293103,0.00043835,60]
[368255948,1751075449455,-490.0,0.00043835,60]
[368255950,1751075449464,-490.0,0.00043835,60]
[368255952,1751075449474,-490.0,0.00043835,60]
[368255954,1751075449483,-318.43021959,0.00043835,60]
[368255956,1751075449497,-171.56978041,0.00043835,60]
[368255958,1751075449508,-490.0,0.00043835,60]
[368255960,1751075449517,-208.16356061,0.00043835,60]
[368256228,1751075730454,150.0,0.00027397,120]
[368256229,1751075740572,150.0,0.00027397,120]
[368256230,1751075749926,150.0,0.00027397,120]
[368256231,1751075765015,150.0,0.00027397,120]
[368256232,1751075779805,150.0,0.00027397,120]
[368256233,1751075805228,261.02,0.00027397,120]
[368256236,1751076291715,12101.61776182,0.00012893,2]
[368256238,1751076492332,155.78,0.00013699,2]
[368256244,1751076631646,-250.0,0.00032627,2]
[368256245,1751076631656,-153.68,0.00033679,3]
[368256246,1751076631698,-146.32,0.00033679,3]
[368256247,1751076631709,-301.0,0.00033679,3]
[368256248,1751076631720,-400.0,0.00033679,2]
[368256249,1751076631730,-1600.0,0.00033679,3]
[368256250,1751076631739,-1019.10215114,0.0003368,5]
[368256251,1751076631750,-893.01429191,0.0003368,5]
[368256252,1751076631808,-250.0,0.0003368,5]
[368256253,1751076631863,-303.35282489,0.0003368,5]
[368256254,1751076631916,-456.7858882,0.0003368,5]
[368256255,1751076631927,-613.40453012,0.0003368,5]
[368256278,1751076637650,-1050.3968,0.0003368,5]
[368256279,1751076637703,-1848.56596838,0.0003368,5]
[368256280,1751076637759,-1366.41975491,0.0003368,5]
[368256281,1751076637770,-310.24010705,0.0003368,5]
[368256283,1751076637878,-4388.7176834,0.0003368,5]
[368256284,1751076637888,-168.728,0.00033689,36]
[368256285,1751076637898,-12500.0,0.00033689,5]
[368256286,1751076637907,-3426.63370296,0.00033698,5]
[368256287,1751076637951,-3701.48983757,0.00033698,5]
[368256476,1751076639853,-5371.87645947,0.00033698,5]
[368256478,1751076639862,-4174.00645864,0.00033698,2]
[368256480,1751076639872,-150.0,0.00033699,2]
[368256482,1751076639882,-250.0,0.00034733,2]
[368256484,1751076639891,-2000.0,0.00034733,80]
[368256486,1751076639900,-250.0,0.00034733,2]
[368256488,1751076639910,-5674.66720196,0.00035394,2]
[368256490,1751076639919,-5695.68728361,0.00035404,2]
[368256492,1751076639929,-150.83,0.00036014,2]
[368256494,1751076639938,-9790.73,0.00036114,2]
[368256496,1751076639947,-328.0,0.00036161,2]
[368256498,1751076639957,-666.0,0.00036234,2]
[368256500,1751076639966,-597.84841323,0.00036307,3]
[368256502,1751076639977,-1642.15158677,0.00036307,3]
[368256504,1751076639987,-806.09,0.00036308,2]
[368256506,1751076639996,-205.0,0.00036612,2]
[368256508,1751076640005,-165.96,0.00036745,2]
[368256510,1751076640014,-250.0,0.0003688,2]
[368256512,1751076640023,-1000.0,0.00037629,2]
[368256514,1751076640032,-223.9904516,0.000379,2]
[368256516,1751076640041,-3546.1674807,0.000379,2]
[368256519,1751076640053,-713.14459993,0.000379,2]
[368256521,1751076640064,-3819.19737214,0.000379,2]
[368256523,1751076640075,-1227.6525063,0.000379,2]
[368256525,1751076640084,-22.91475652,0.00037973,5]
[368256527,1751076640095,-478.43927572,0.00037973,5]
[368256529,1751076640106,-509.91130961,0.00037973,5]
[368256531,1751076640115,-197.87723888,0.00037973,5]
[368256533,1751076640124,-705.61048315,0.0003799,3]
[368256535,1751076640135,-1740.0911033,0.0003799,3]
[368256538,1751076640147,-1199.30233872,0.0003799,3]
[368256540,1751076640158,-1034.0,0.0003799,3]
[368256552,1751076640267,-29243.70739333,0.0003799,3]
[368256554,1751076640277,-447.36,0.0003799,2]
[368256556,1751076640286,-447.36,0.0003799,2]
[368256558,1751076640295,-447.36,0.0003799,2]
[368256560,1751076640303,-447.36,0.0003799,2]
[368256562,1751076640312,-447.36,0.0003799,2]
[368256564,1751076640322,-500.0,0.00037999,15]
[368256566,1751076640331,-380.18864634,0.00037999,15]
[368256568,1751076640340,-155.41,0.00038,2]
[368256570,1751076640349,-86262.81468209,0.00038,2]
[368256806,1751076642624,-21149.97477974,0.00038,2]
[368256808,1751076642635,-7107.05310866,0.00038,2]
[368256810,1751076642646,-2356.23598427,0.00038,2]
[368256815,1751076642678,-605.70812265,0.00038,2]
[368256817,1751076642689,-734.71,0.00038,2]
[368256819,1751076642700,-4693.02836681,0.00038,2]
[368256821,1751076642715,-7008.99624208,0.00038,2]
[368256824,1751076642732,-70081.4787137,0.00038,2]
[368256826,1751076642742,-100000.0,0.00038,10]
[368256828,1751076642751,-9306.16195907,0.00038731,2]
[368256830,1751076642761,-507.76871212,0.00038733,5]
[368256832,1751076642770,-503.31704787,0.00038733,5]
[368256834,1751076642779,-502.54942197,0.00038733,5]
[368256836,1751076642793,-5011.25371714,0.00038768,2]
[368256838,1751076642803,-200.0,0.00038868,2]
[368256840,1751076642813,-328.0,0.0003914,5]
[368256842,1751076642822,-5011.25371711,0.00039533,2]
[368256844,1751076642832,-205.0,0.00039536,9]
[368256846,1751076642842,-9306.16195907,0.00039562,2]
[368256848,1751076642851,-223.99045158,0.00039565,2]
[368256850,1751076642860,-11307.5704395,0.0003959,3]
[368256852,1751076642870,-37391.64142106,0.000396,120]
[368256854,1751076642879,-11307.5704395,0.0003999,3]
[368256856,1751076642889,-2015.76,0.0004,120]
[368256858,1751076642898,-3071.96138678,0.00040183,2]
[368256860,1751076642907,-5011.25371711,0.00040298,15]
[368256862,1751076642916,-9306.16195907,0.00040393,15]
[368256864,1751076642925,-150.0,0.00040565,3]
[368256866,1751076642934,-150.0,0.00040565,3]
[368256868,1751076642944,-500.0,0.00040565,3]
[368256870,1751076642954,-150.0,0.00040565,3]
[368256872,1751076642963,-500.0,0.00040565,3]
[368256875,1751076642973,-500.0,0.00040565,3]
[368256877,1751076642983,-500.0,0.00040565,3]
[368256879,1751076642992,-150.0,0.00040565,3]
[368256881,1751076643001,-500.0,0.00040565,3]
[368256883,1751076643011,-500.0,0.00040565,3]
[368256885,1751076643020,-150.0,0.00040565,3]
[368256887,1751076643029,-11307.5704395,0.00040763,3]
[368256889,1751076643038,-500.0,0.00040764,3]
[368256891,1751076643047,-23900.0,0.00040774,2]
[368256893,1751076643057,-150.0,0.00040839,3]
[368256895,1751076643067,-207.23391452,0.00040839,3]
[368256897,1751076643076,-500.0,0.00040839,3]
[368256899,1751076643085,-152.12097101,0.00040839,3]
[368256901,1751076643095,-500.0,0.00040839,3]
[368256903,1751076643105,-500.0,0.00040839,3]
[368256905,1751076643114,-500.0,0.00040839,3]
[368256907,1751076643123,-150.0,0.00040839,3]
[368256909,1751076643133,-500.0,0.00040839,3]
[368256911,1751076643142,-500.0,0.00040839,3]
[368256913,1751076643151,-150.0,0.00040839,3]
[368256915,1751076643163,-165.31,0.00040986,2]
[368256917,1751076643173,-185.451378,0.00041,7]
[368256919,1751076643183,-500.0,0.00041038,3]
[368256921,1751076643194,-5011.25371711,0.00041063,15]
[368256923,1751076643204,-500.0,0.00041096,3]
[368256925,1751076643213,-183.55,0.000411,2]
[368256927,1751076643223,-150.0,0.00041113,3]
[368256929,1751076643233,-500.0,0.00041113,3]
[368256931,1751076643243,-500.0,0.00041113,3]
[368256933,1751076643252,-500.0,0.00041113,3]
[368256935,1751076643262,-267.61586378,0.00041113,3]
[368256937,1751076643271,-150.0,0.00041113,3]
[368256939,1751076643280,-212.77833844,0.00041113,3]
[368256941,1751076643289,-500.0,0.00041113,3]
[368256943,1751076643299,-166.81948969,0.00041113,3]
[368256945,1751076643308,-9306.16195907,0.00041224,15]
[368256947,1751076643317,-223.99045158,0.0004123,28]
[368256949,1751076643326,-200.0,0.00041231,2]
[368256951,1751076643336,-500.0,0.00041312,3]
[368256953,1751076643345,-500.0,0.0004137,3]
[368256955,1751076643354,-150.0,0.00041387,3]
[368256957,1751076643363,-568.06887669,0.00041387,3]
[368256959,1751076643372,-500.0,0.00041387,3]
[368256961,1751076643381,-500.0,0.00041387,3]
[368256963,1751076643390,-150.0,0.00041387,3]
[368256965,1751076643399,-214.56332646,0.00041387,3]
[368256967,1751076643408,-4131.307,0.00041451,2]
[368256969,1751076643417,-7171.29,0.00041451,2]
[368256971,1751076643427,-158.039,0.00041451,2]
[368256973,1751076643436,-861.429,0.00041451,2]
[368256975,1751076643445,-593.989,0.00041451,2]
[368256977,1751076643454,-500.0,0.00041586,3]
[368256979,1751076643463,-500.0,0.00041644,3]
[368256981,1751076643473,-242.40855154,0.00041661,3]
[368256983,1751076643482,-500.0,0.00041661,3]
[368256985,1751076643491,-500.0,0.00041661,3]
[368256987,1751076643500,-207.73035044,0.00041661,3]
[368256989,1751076643510,-5011.25371711,0.00041828,15]
[368256991,1751076643519,-500.0,0.0004186,3]
[368256993,1751076643528,-500.0,0.00041918,3]
[368256995,1751076643537,-500.0,0.00041935,3]
[368256997,1751076643547,-500.0,0.00041935,3]
[368256999,1751076643555,-799.17,0.00042027,30]
[368257000,1751076643565,-589.09,0.00042027,30]
[368257002,1751076643574,-9306.16195907,0.00042055,15]
[368257005,1751076643584,-150.83,0.00042107,2]
[368257007,1751076643594,-500.0,0.00042134,3]
[368257009,1751076643604,-500.0,0.00042192,3]
[368257011,1751076643613,-500.0,0.00042209,3]
[368257013,1751076643623,-500.0,0.00042209,3]
[368257015,1751076643632,-1000.0,0.00042333,2]
[368257017,1751076643641,-500.0,0.00042408,3]
[368257019,1751076643651,-205.0,0.00042459,16]
[368257021,1751076643661,-1557.06211523,0.00042459,2]
[368257023,1751076643670,-500.0,0.00042483,3]
[368257025,1751076643681,-500.0,0.00042483,3]
[368257027,1751076643690,-11307.5704395,0.00042528,3]
[368257029,1751076643700,-5011.25371711,0.00042593,15]
[368257031,1751076643709,-500.0,0.00042682,3]
[368257033,1751076643723,-500.0,0.00042757,3]
[368257035,1751076643733,-9306.16195907,0.00042886,15]
[368257037,1751076643742,-223.99045158,0.00042895,28]
[368257039,1751076643752,-500.0,0.00042956,3]
[368257041,1751076643763,-500.0,0.00043031,3]
[368257043,1751076643773,-1359.67966461,0.00043114,2]
[368257045,1751076643782,-174.23,0.00043123,30]
[368257047,1751076643793,-171.06,0.00043123,30]
[368257049,1751076643803,-166.6,0.00043123,30]
[368257051,1751076643813,-300.65,0.00043123,30]
[368257053,1751076643822,-362.12,0.00043123,30]
[368257055,1751076643831,-309.58,0.00043123,30]
[368257057,1751076643840,-462.92,0.00043123,30]
[368257059,1751076643849,-500.0,0.0004323,3]
[368257061,1751076643859,-835.23345362,0.00043288,2]
[368257063,1751076643869,-1254.0,0.000433,2]
[368257065,1751076643878,-500.0,0.00043305,3]
[368257067,1751076643887,-5011.25371711,0.00043358,15]
[368257069,1751076643897,-5000.0,0.0004338,2]
[368257071,1751076643908,-11307.5704395,0.0004339,3]